Cogmind - Beta 14 @@@ ROGUE MODE // 2024.08.08 @ 00:37:26 Player: Olafz Result: Destroyed by 4L-DZJ(R) with Subdweller Machine Gun Performance ------------- Evolutions (0) 0 Regions Visited (2) 400 Robots Destroyed (15) 75 Value Destroyed (495) 495 Prototype IDs (0) 0 Alien Tech Used (0) 0 Bonus (0) 0 TOTAL SCORE: 970 Bonus ------- None Cogmind --------- Core Integrity 0/250 Matter 259/300 Energy 200/200 System Corruption 0% Temperature Cool (0) Movement Rolling (110) Location -10/Subcaves Parts ------- > --- POWER (1) -------- Subdweller Power Source > --- PROPULSION (2) --- Subdweller Monowheel Subdweller Monowheel > --- UTILITY (2) ------ Small Storage Unit Subdweller Optics > --- WEAPON (2) ------- Subdweller Laser Subdweller Machine Gun > --- INVENTORY (8) ---- Subdweller Power Source Spiked Treads Scrap Shield Scrap Shield Grenade Launcher Peak State ------------ > --- POWER ------------ Subdweller Power Source > --- PROPULSION ------- Subdweller Monowheel Subdweller Monowheel > --- UTILITY ---------- Small Storage Unit Subdweller Optics > --- WEAPON ----------- Subdweller Laser Subdweller Beam Cannon > --- INVENTORY -------- Subdweller Power Source Compact Wheel Scrap Shield Subdweller Machine Gun Grenade Launcher Mining Laser Makeshift Axe [Rating: 14] Favorites ----------- Power Ion Engine Engine Ion Engine Propulsion Light Treads Treads Light Treads Leg Aluminum Leg Wheel Subdweller Monowheel Utility Small Storage Unit Device Subdweller Optics Storage Small Storage Unit Weapon Light Assault Rifle Energy Gun Subdweller Laser Energy Cannon Subdweller Beam Cannon Ballistic Gun Light Assault Rifle Launcher Grenade Launcher Special Weapon Mining Laser Build | -11 -10 -10 ------- Run | Yrd Mat Sub Slots Evolved . | . . . Power . | . . . Propulsion . | . . . Utility . | . . . Weapon . | . . . Parts Attached 26 | . 4 22 Power 5 | . . 5 Engine 5 | . . 5 Core . | . . . Reactor . | . . . Propulsion 8 | . 2 6 Treads 2 | . 2 . Leg . | . . . Wheel 6 | . . 6 Hover . | . . . Flight . | . . . Utility 4 | . 1 3 Device 3 | . 1 2 Storage 1 | . . 1 Processor . | . . . Hackware . | . . . Protection . | . . . Artifact . | . . . Weapon 9 | . 1 8 Energy Gun 4 | . . 4 Energy Cannon 1 | . . 1 Ballistic Gun 1 | . . 1 Ballistic Cannon . | . . . Launcher 1 | . . 1 Special Weapon 2 | . 1 1 Impact Weapon . | . . . Slashing Weapon . | . . . Piercing Weapon . | . . . Special Melee Weapon . | . . . Unidentified Prototypes . | . . . Parts Lost 8 | . . 8 Power 2 | . . 2 Propulsion 2 | . . 2 Utility 1 | . . 1 Weapon 3 | . . 3 Highest Loss Streak 4 | . . 4 To Critical Strikes . | . . . Average Slot Usage (%) 92 | . 86 94 Engine 13 | . 14 13 Treads 12 | . 28 5 Wheel 13 | . . 18 Device 10 | . 1 13 Storage 14 | . 14 14 Energy Gun 9 | . . 13 Energy Cannon 6 | . . 9 Ballistic Gun 8 | . 27 1 Launcher 3 | . . 4 Peak Build Rating 14 | . 7 14 Average Rating 9 | . 6 11 On Entrance 6 | 6 6 7 Naked Turns . | . . . Heaviest Build 24 | 12 13 24 Greatest Support 40 | 20 40 40 Greatest Overweight (x) 1 | . . 1 Average Overweight (x) . | . . . Largest Inventory Capacity 8 | . 8 8 Average Capacity 8 | . 8 8 Most Carried 8 | . 8 8 Average Carried 7 | . 7 7 Final Capacity 8 | 8 8 8 Final Carried 8 | 6 8 7 Class Distribution -------------------- 63% | Mutant 36% | Scavenger-Mutant Dominant Class ---------------- Mutant | -10/Materials Scavenger-Mutant | -10/Subcaves Resources | -11 -10 -10 ----------- Run | Yrd Mat Sub Matter Collected 464 | 174 19 271 Remotely . | . . . Salvage Created 597 | . 52 545 Parts 39 | . 13 26 Haulers Intercepted . | . . . Recyclers Shooed . | . . . Parts Field Recycled . | . . . Retrieved Matter . | . . . Parts Self-Destructed 10 | . . 10 Prevented . | . . . Kills | -11 -10 -10 ------- Run | Yrd Mat Sub Combat Hostiles Destroyed 12 | . . 12 Cannons 8 | . . 8 AOE 3 | . . 3 Classes Destroyed 2 | . 1 1 Builder 3 | . 3 . Subdweller 12 | . . 12 Best Kill Streak 3 | . 1 3 Combat Bots Only 3 | . . 3 Max Kills in Single Turn 2 | . 1 2 Gunslinging . | . . . Exploded 2 | . . 2 Melee . | . . . Uniques/NPCs Destroyed . | . . . Combat | -11 -10 -10 -------- Run | Yrd Mat Sub Hostile Shots Fired 75 | . . 75 Missed 20 | . . 20 Damage Taken 1218 | . . 1218 Core 263 | . . 263 Absorbed by Shields . | . . . Core Remaining (%) 100 | 100 . . Volleys Fired 58 | . 12 46 Largest 2 | . 2 2 Hottest 140 | . 120 140 Shots Fired 115 | . 24 91 Gun 80 | . 23 57 Cannon 28 | . . 28 Launcher 5 | . . 5 Special 2 | . 1 1 Kinetic 32 | . 23 9 Thermal 59 | . 1 58 Explosive 5 | . . 5 Electromagnetic 19 | . . 19 Robot Hit Streak 14 | . 6 14 Robot Miss Streak 3 | . 2 3 Penetration Max . | . . . Secondary Targets . | . . . Shots Hit Robots 77 | . 14 63 Core Hits 27 | . 7 20 Critical Kills 1 | . . 1 Critical Parts Destroyed . | . . . Critical Strikes 3 | . . 3 Meltdown 1 | . . 1 Destroy 2 | . . 2 Melee Attacks . | . . . Impact . | . . . Slashing . | . . . Piercing . | . . . Sneak Attacks . | . . . Combat Hostiles . | . . . Follow-up Attacks . | . . . Damage Inflicted 1450 | . 112 1338 Guns 675 | . 112 563 Cannons 569 | . . 569 Explosions 206 | . . 206 Melee . | . . . Ramming . | . . . Kinetic 199 | . 112 87 Thermal 959 | . . 959 Explosive 206 | . . 206 Electromagnetic 86 | . . 86 Impact . | . . . Slashing . | . . . Piercing . | . . . Highest Corruption . | . . . Average Corruption . | . . . Corruption Purged . | . . . Corruption Blocked . | . . . Overload Shots . | . . . Overflow Damage 3 | . . 3 Projectiles . | . . . Explosions 3 | . . 3 Melee . | . . . Knockbacks . | . . . Impact . | . . . Kinetic . | . . . Secondary . | . . . Self-Inflicted Damage 59 | . . 59 Shots 3 | . . 3 Rammed . | . . . Targets Rammed . | . . . Kicked . | . . . Crushed . | . . . Highest Temperature 120 | . 40 120 Average Temperature 34 | . 20 35 Received Heat Transfer 165 | . . 165 Siege Activations . | . . . Robots Corrupted . | . . . Combat Hostiles . | . . . Parts Fried . | . . . Impact Corruptions . | . . . Robots Melted 1 | . . 1 Combat Hostiles 1 | . . 1 Parts Melted 3 | . . 3 Heat Transferred 1252 | . . 1252 Parts Sabotaged . | . . . Parts Stolen . | . . . Parts Stripped . | . . . Power Chain Reactions . | . . . Alert | -11 -10 -10 ------- Run | Yrd Mat Sub Peak Influence 15 | . 15 . Initial . | . . . Average 8 | . 8 . Maximum Alert Level . | . . . Low Security (%) 100 | . 100 . Level 1 . | . . . Level 2 . | . . . Level 3 . | . . . Level 4 . | . . . Level 5 . | . . . High Security . | . . . Max Security . | . . . Squads Dispatched . | . . . Investigation . | . . . Extermination . | . . . Reinforcement . | . . . Assault . | . . . Garrison . | . . . Intercept . | . . . Searches Triggered . | . . . Construction Impeded . | . . . Haulers Reinforced . | . . . Active Scanning Responses . | . . . Cargo Convoy Interrupts . | . . . Stealth | -11 -10 -10 --------- Run | Yrd Mat Sub Distress Signals . | . . . Communications Jammed . | . . . Distress Signals . | . . . Times Spotted 14 | . . 14 Peak Tracking Total 3 | . . 3 Tactical Retreats . | . . . Traps | -11 -10 -10 ------- Run | Yrd Mat Sub Traps Triggered . | . . . Indirectly . | . . . Trap Hack Attempts . | . . . Triggered . | . . . Disarmed . | . . . Reprogrammed . | . . . Reused . | . . . Traps Extracted . | . . . Installed . | . . . Triggered . | . . . Machines | -11 -10 -10 ---------- Run | Yrd Mat Sub Machines Disabled . | . . . Max in Single Turn . | . . . Machines Repaired . | . . . Machines Dismantled . | . . . Machines Sabotaged . | . . . Overloaded Fab Kills . | . . . Hacking | -11 -10 -10 --------- Run | Yrd Mat Sub Machines Accessed 2 | . 2 . Terminals 2 | . 2 . Fabricators . | . . . Repair Stations . | . . . Recycling Units . | . . . Scanalyzers . | . . . Garrison Access . | . . . Total Hacks 7 | . 7 . Successful 4 | . 4 . Failed 3 | . 3 . Catastrophic . | . . . Database Lockouts . | . . . Manual 3 | . 3 . Terminals 7 | . 7 . Fabricators . | . . . Repair Stations . | . . . Recycling Units . | . . . Scanalyzers . | . . . Garrison Access . | . . . Terminal Hacks 2 | . 2 . Locate Traps 1 | . 1 . Transport Status 1 | . 1 . Fabricator Hacks . | . . . Repair Station Hacks . | . . . Recycling Unit Hacks . | . . . Scanalyzer . | . . . Garrison Access Hacks . | . . . Unauthorized Hacks 2 | . 2 . Terminals 2 | . 2 . Botnet 2 | . 2 . Fabricators . | . . . Repair Stations . | . . . Recycling Units . | . . . Scanalyzers . | . . . Garrison Access . | . . . Data Cores Recovered . | . . . Used . | . . . Hacking Detections 2 | . 2 . Full Trace Events . | . . . Feedback Events . | . . . Feedback Blocked . | . . . Robot Schematics Acquired . | . . . Robots Built . | . . . Authchips . | . . . Time . | . . . Total Robot Build Rating . | . . . Part Schematics Acquired . | . . . Parts Built . | . . . Authchips . | . . . Time . | . . . Total Part Build Rating . | . . . Parts Repaired . | . . . Time . | . . . Parts Recycled . | . . . Recycled Matter . | . . . Retrieved Matter . | . . . Retrieved Components . | . . . Parts Scanalyzed . | . . . Part Schematics Acquired . | . . . Parts Damaged . | . . . Bothacking | -11 -10 -10 ------------ Run | Yrd Mat Sub Used RIF Installer . | . . . Robots Hacked . | . . . Non-combat . | . . . Combat . | . . . Robot Hacks Applied . | . . . Relay Couplers Released . | . . . Fabnet Peak Effective % . | . . . Robots Rewired . | . . . Allies Hacked . | . . . Hacks Repelled . | . . . Allies | -11 -10 -10 -------- Run | Yrd Mat Sub Total Allies . | . . . Largest Group . | . . . Highest-Rated Group . | . . . Highest-Rated Ally . | . . . Total Orders . | . . . Ally Attacks . | . . . Total Damage . | . . . Kills . | . . . Allies Corrupted . | . . . Allies Melted . | . . . Intel | -11 -10 -10 ------- Run | Yrd Mat Sub Robot Analysis Total . | . . . Derelict Logs Recovered 1 | . . 1 Drone Launches . | . . . Drone Recoveries . | . . . Exploration | -11 -10 -10 ------------- Run | Yrd Mat Sub Turns Passed 1583 | . 466 1117 Spaces Moved 1016 | 1 247 768 Core . | . . . Treads 449 | . 247 202 Legs 1 | 1 . . Wheels 566 | . . 566 Hover . | . . . Flight . | . . . Fastest Speed 100 | 120 160 100 Average Speed 130 | 120 160 121 Slowest Speed 160 | 120 160 160 Overloaded Moves . | . . . Propulsion Burnouts . | . . . Robots Hopped . | . . . Cave-ins Triggered . | . . . Exploration Rate (%) 29 | 2 33 54 Regions Visited 2 Branch Regions 1 Pre-discovered Areas . | . . . Known Exits Taken . | . . . Unknown Exits Taken 2 | 1 1 . Scrap Searched 3 | . . 3 Spaces Dug 1 | . . 1 Terrain Destroyed 28 | . . 28 Melee . | . . . Projectile 2 | . . 2 AOE 26 | . . 26 Terrain Rammed . | . . . Walls Destroyed . | . . . Machines Disabled . | . . . Actions | -11 -10 -10 --------- Run | Yrd Mat Sub Total 1164 | . 298 866 Wait 31 | . 26 5 Move 1014 | . 246 768 Hop . | . . . Pick Up 14 | . 5 9 Fast Attach 5 | . 1 4 Attach 10 | . 2 8 Detach 3 | . 2 1 Swap 11 | . 1 10 Drop 18 | . 3 15 Fire 58 | . 12 46 Melee . | . . . Ram . | . . . Kick . | . . . Crush . | . . . Escape Stasis . | . . . Rewire . | . . . Trap . | . . . Miscellaneous . | . . . Route ------- -11/Scrapyard -10/Materials (discovered 3 exits: [*Mat] / [*Min] / [*Sub]) -10/Subcaves (discovered 1 exit: Mat) History --------- Turn | Location | Event 1 | -11/Scrapyard | Discovered new exit (range 0) 1 | -11/Scrapyard | Entered Materials 150 | -10/Materials | Discovered new exit (range 16) 258 | -10/Materials | Discovered new exit (range 12) 307 | -10/Materials | Build established: Mutant 425 | -10/Materials | Discovered new exit (range 6) 467 | -10/Materials | Entered Subcaves 493 | -10/Subcaves | Identified exit to Materials 584 | -10/Subcaves | Lost 4 parts (1n1u2w) 686 | -10/Subcaves | Shifting Twisted Machinery released Sub. Optics 830 | -10/Subcaves | Shifting Twisted Machinery released Mak. Axe 840 | -10/Subcaves | Shifting Twisted Machinery released Sub. Beam Cannon 998 | -10/Subcaves | Core integrity fell below 50% 1301 | -10/Subcaves | Build established: Scavenger-Mutant 1402 | -10/Subcaves | Disturbed a concealed Subdweller 1414 | -10/Subcaves | Core integrity fell below 20% 1558 | -10/Subcaves | Ambushed by Subdwellers from Twisted Machinery 1584 | -10/Subcaves | Destroyed by 4L-DZJ(R) with Subdweller Machine Gun Last Messages --------------- Found Flamer. Found Enh. Flamer. Found 53 Matter. Acquired Sub. Power Source. Acquired Spk. Treads. Sub. Optics melted. Sub. Laser melted. DX-GQ9(R) destroyed. JU-BV7(O) puts together Sub. Laser. Dropped Sub. Power Source. Sub. Monowheel shoots sparks and powers down. Dropped Sub. Machine Gun. Acquired Sub. Machine Gun. JU-BV7(O) collects matter. Dropped Sml. Storage Unit. Dropped Broken Sub. Monowheel. JU-BV7(O) puts together Mak. Flight Unit. 4L-DZJ(R) emerges from the Twisted Machinery. Sub. Beam Cannon destroyed. 4L-DZJ(R) suffers critical hit (Destroy). Map ----- +----------------------------------------------------+ | ???????????????### ##?????????????????????????? | | ???????????????# ###???????????????????????? | | ????????????????# ## #####??????????????????? | | ????????????????## #### ######?????????????? | | ?????????????????# ##??# ## #?????????????? | | ##???????????????# ###### #?????????????? | | ###?####????????# ## #??????????????? | | #?# ##???????#### ! #??????????????? | | ### #??????????## #??????????????? | | #???????????##&= #??????????????? | | #????????##### ! ##??????????????? | | #????????# ! #???????????????? | | #####??????# *# #???????????????? | | ## ##### #??##### "# ## #???????????????? | | #### #### #??# [### #???????????????? | | ## # #### | = #?## #??????????????? | | # ##?## #?????????????? | | ## [## #??# #?????????????? | | ## # # ### #??# ##?????????????? | | # ###### #?# #??## ##??????????????? | | #???# ### #####???###???????????????? | | #????# ### #??????##?????????????????? | | ###### #?# #######"##????????????????? | | ## ## #####?# # ## ###????# ????????? | | ?# #?????### # """ ???????? | | ?## #???????## @ R" "" ??????? | | ??# ##????????# # R "" ""???????? | | ??# = [& ## ##?????######## ### ""???????? | | ?## & %#????????????? ###???????????????? | | ?# ! #??????????????##?????????????????? | | ?# ##?????????????????????????????????? | | ## ########??????????????????????????????????? | | # ##?????????????????????????????????????????? | | #??????????????????????????????????????????? | | ## #??????????????????????????????????????????? | | ### #?????????????????????????????????????????? | | ##?## ##?????????????????????????????????????????? | | ##??###??????????????????????????????????????????? | | #???????????????????????????????????????????????? | | ##??????????????????????????????????????????????? | | #???####???????????????????????????????????????? | | ##### #???????????????????????????????????????? | | #???????????????????????????????????????? | | #???????????????????????????????????????? | | #???????????????????????????????????????? | | # #####???????????????????????????????????? | | ## #???????????????????????????????????? | | ## ###???????????????????????????????????? | | # "##?????????????????????????????????????? | | ## ##????##????????????????????????????????? | +----------------------------------------------------+ Best States ------------- Heat Dissipation 25 Energy Generation 15 Energy Capacity 250 Matter Stores 300 Matter Capacity 300 Sight Range 21 Terrain Scan Density 10 Evasion (%) 40 Recoil Reduction 2 Item Schematics ----------------- None Robot Schematics ------------------ None Fabricated ------------ Nothing Alien Tech Used ----------------- None Achievements -------------- None Challenges ------------ None Game ------ Seed ReflectiveTractorDriver Manual? 0 Play Time 00:15:36 Cumulative 173.6 hours Start 2024.08.07 @ 23:45:49 End 2024.08.08 @ 00:37:26 Sessions 1 Manual Loads 0 Difficulty Rogue Special Mode None Game No. 287 Rogue 285 Adventurer 2 Explorer 0 Win Type - Total 5 Types 4/0/0/1/0/0/0/0/0 Lore% 63 Gallery% 62 Achievement% 52 Wizard Run 0 Options --------- Layout 0 ASCII 0 Keyboard 1 Movement Numpad Keybinds 1 Fullscreen 2 Font 18/SmallcapsGlow Map View 76x50 Zoom Use 0% Tactical HUD 1 Map Filters NONE Filters NONE Steam 1 RUN: 4873f7d8-ce51-41ef-9947-b7a9f82fe779